Cogmind - Beta 16.1 @@@ ROGUE MODE // 2026.04.08 @ 14:16:39 Player: Maelyn Result: Destroyed self via exploding Fusion Modulator Performance ------------- Evolutions (2) 1000 Regions Visited (3) 600 Robots Destroyed (35) 175 Value Destroyed (1237) 1237 Prototype IDs (0) 0 Alien Tech Used (0) 0 Bonus (0) 0 TOTAL SCORE: 3012 Bonus ------- None Cogmind --------- Core Integrity 0/550 Matter 262/300 Energy 246/410 System Corruption 3% Temperature Cool (12) Movement Core (500) Ox9 Location -8/Materials Parts ------- > --- POWER (1) -------- Light Nuclear Core > --- PROPULSION (3) --- (None) > --- UTILITY (5) ------ Cryofiber Web Medium Storage Unit High-capacity Battery > --- WEAPON (2) ------- Beam Rifle Improved Grenade Launcher > --- INVENTORY (10) --- VSS Leg Advanced Visual Processing Unit Improved Power Shielding Light Armor Plating Peak State ------------ > --- POWER ------------ Nuclear Core > --- PROPULSION ------- VSS Leg VSS Leg VSS Leg > --- UTILITY ---------- Cryofiber Web Medium Storage Unit High-capacity Battery Improved Light Armor Plating Insulated Plating > --- WEAPON ----------- Beam Rifle Particle Gun > --- INVENTORY -------- Titanium Leg Improved Heat Sink Advanced Visual Processing Unit Improved Power Shielding Light Armor Plating Improved Grenade Launcher Scythe Blade Saw [Rating: 29] Favorites ----------- Power Light Nuclear Core Engine Light Ion Engine Power Core Light Nuclear Core Propulsion VSS Leg Treads Light Treads Leg VSS Leg Utility Medium Storage Unit Device Cryofiber Web Storage Medium Storage Unit Hackware Hacking Suite Protection Weapon Shielding Weapon Medium Laser Energy Gun Medium Laser Ballistic Gun Heavy Assault Rifle Launcher Grenade Launcher Slashing Weapon Scythe Build | -11 -10 -9 -8 ------- Run | Yrd Mat Mat Mat Slots Evolved 4 | . . 2 2 Power . | . . . . Propulsion 1 | . . . 1 Utility 3 | . . 2 1 Weapon . | . . . . Parts Attached 53 | 8 12 13 20 Power 9 | 1 3 1 4 Engine 5 | 1 1 1 2 Core 4 | . 2 . 2 Reactor . | . . . . Propulsion 11 | 4 2 2 3 Treads 2 | 2 . . . Leg 9 | 2 2 2 3 Wheel . | . . . . Hover . | . . . . Flight . | . . . . Utility 16 | 1 3 3 9 Device 5 | . 1 . 4 Storage 4 | 1 1 1 1 Processor . | . . . . Hackware 2 | . . . 2 Protection 5 | . 1 2 2 Artifact . | . . . . Weapon 17 | 2 4 7 4 Energy Gun 5 | . 1 2 2 Energy Cannon . | . . . . Ballistic Gun 6 | 2 2 2 . Ballistic Cannon . | . . . . Launcher 2 | . 1 . 1 Special Weapon . | . . . . Impact Weapon . | . . . . Slashing Weapon 4 | . . 3 1 Piercing Weapon . | . . . . Special Melee Weapon . | . . . . Unidentified Prototypes . | . . . . Parts Lost 31 | . 10 6 15 Power 7 | . 2 2 3 Propulsion 7 | . 3 . 4 Utility 8 | . 1 2 5 Weapon 9 | . 4 2 3 Highest Loss Streak 5 | . 5 2 4 To Critical Strikes 1 | . . . 1 Average Backups 6 | 4 3 8 8 Power . | 1 1 . . Propulsion 1 | 1 . 1 1 Utility 1 | . 1 1 2 Weapon 2 | . . 4 3 Tool/Special . | . . . . Unused Backups 4 | . . 1 3 Power . | . . . . Propulsion . | . . . . Utility 3 | . . . 3 Weapon 1 | . . 1 . Tool/Special . | . . . . Average Slot Usage (%) 87 | . 86 90 87 Engine 4 | . 2 4 5 Core 4 | . 11 1 2 Treads 1 | . 4 . . Leg 21 | . 21 22 21 Device 4 | . 2 . 9 Storage 18 | . 14 22 18 Protection 10 | . 1 18 11 Energy Gun 9 | . 10 6 11 Ballistic Gun 6 | . 12 8 1 Slashing Weapon 3 | . . 6 4 Peak Build Rating 29 | 6 11 19 29 Average Rating 16 | 3 8 15 24 On Entrance 8 | . 6 9 17 Avg Prop Armor Cover (%) 6 | . . . 6 Naked Turns . | . . . . Heaviest Build 34 | 13 20 30 34 Greatest Support 41 | 40 40 24 41 Greatest Overweight (x) 5 | . 5 1 1 Average Overweight (x) . | . . . . Largest Inventory Capacity 10 | 8 10 10 10 Average Capacity 9 | 5 9 10 10 Most Carried 10 | 5 7 10 10 Average Carried 6 | 4 3 8 8 Final Capacity 10 | 8 10 10 10 Final Carried 9 | 4 6 9 4 Class Distribution -------------------- 100% | Mutant Dominant Class ---------------- Mutant | -10/Materials Mutant | -9/Materials Mutant | -8/Materials Resources | -11 -10 -9 -8 ----------- Run | Yrd Mat Mat Mat Matter Collected 1048 | 201 295 279 273 Remotely . | . . . . Salvage Created 1358 | . 337 355 666 Parts 65 | . 14 17 34 Haulers Intercepted . | . . . . Recyclers Shooed 2 | . 2 . . Parts Field Recycled . | . . . . Retrieved Matter . | . . . . Parts Self-Destructed . | . . . . Prevented . | . . . . Parts Restored . | . . . . Kills | -11 -10 -9 -8 ------- Run | Yrd Mat Mat Mat Combat Hostiles Destroyed 29 | . 10 6 13 Melee 2 | . . . 2 Guns 20 | . 7 6 7 AOE 7 | . 3 . 4 Classes Destroyed 9 | . 3 3 3 Worker 1 | . . . 1 Builder 1 | . 1 . . Recycler 1 | . . 1 . Operator 2 | . . 1 1 Watcher 1 | . . . 1 Swarmer 2 | . 2 . . Grunt 18 | . 8 3 7 Brawler 1 | . . . 1 Sentry 8 | . . 3 5 Best Kill Streak 7 | . 4 3 7 Combat Bots Only 6 | . 3 2 6 Max Kills in Single Turn 5 | . 3 1 5 Gunslinging . | . . . . Exploded 4 | . 1 . 4 Melee 1 | . . . 1 Uniques/NPCs Destroyed . | . . . . Combat | -11 -10 -9 -8 -------- Run | Yrd Mat Mat Mat Hostile Shots Fired 428 | . 156 96 176 Missed 131 | . 40 31 60 Hits 297 | . 116 65 116 Melee 3 | . . . 3 Projectile 294 | . 116 65 113 Critical Strikes 12 | . 1 1 10 Damage Taken 4084 | . 1366 754 1964 Core 954 | . 184 171 599 Absorbed by Shields 49 | . . . 49 Redirected to Shielding 50 | . . 50 . Core Remaining (%) 61 | 100 26 57 . Volleys Fired 145 | . 54 34 57 Largest 2 | . 2 2 2 Hottest 121 | . 80 100 121 Shots Fired 248 | . 93 64 91 Gun 242 | . 88 64 90 Cannon . | . . . . Launcher 6 | . 5 . 1 Special . | . . . . Kinetic 112 | . 67 28 17 Thermal 130 | . 21 36 73 Explosive 6 | . 5 . 1 Electromagnetic . | . . . . Robot Hit Streak 11 | . 8 9 11 Robot Miss Streak 5 | . 3 3 5 Penetration Max . | . . . . Secondary Targets 1 | . . . 1 Max Gunslinging Chain 1 | . . . 1 Shots Hit Robots 159 | . 55 42 62 Core Hits 78 | . 30 13 35 Critical Kills . | . . . . Critical Parts Destroyed . | . . . . Critical Strikes 10 | . 1 1 8 Burn 6 | . 1 1 4 Destroy 1 | . . . 1 Sever 3 | . . . 3 Melee Attacks 11 | . . 2 9 Impact . | . . . . Slashing 11 | . . 2 9 Piercing . | . . . . Sneak Attacks 2 | . . 1 1 Combat Hostiles . | . . . . Follow-up Attacks 1 | . . . 1 Damage Inflicted 2757 | . 909 648 1200 Guns 2064 | . 615 571 878 Cannons . | . . . . Explosions 478 | . 294 . 184 Melee 201 | . . 77 124 Ramming 14 | . . . 14 Kinetic 844 | . 442 276 126 Thermal 1220 | . 173 295 752 Explosive 478 | . 294 . 184 Electromagnetic . | . . . . Impact . | . . . . Slashing 201 | . . 77 124 Piercing . | . . . . Highest Corruption 3 | . . . 3 Average Corruption 2 | . . . 2 Corruption Purged . | . . . . Corruption Blocked . | . . . . Effects 10 | . . . 10 Message Errors 2 | . . . 2 Matter Fused 2 | . . . 2 Energy Discharges 3 | . . . 3 Data Loss (minor) 2 | . . . 2 Weapon Failures 1 | . . . 1 Overload Shots . | . . . . Overflow Damage 41 | . 1 37 3 Projectiles . | . . . . Explosions 4 | . 1 . 3 Melee 37 | . . 37 . Knockbacks . | . . . . Impact . | . . . . Kinetic . | . . . . Secondary . | . . . . Self-Inflicted Damage 166 | . 30 . 136 Shots 3 | . 1 . 2 Rammed . | . . . . Targets Rammed 1 | . . . 1 Kicked 1 | . . . 1 Crushed . | . . . . Highest Temperature 593 | . 228 205 593 Average Temperature 107 | . 53 83 154 Received Heat Transfer 1913 | . 603 375 935 Effects 9 | . . . 9 Energy Bleed 1 | . . . 1 Interference 3 | . . . 3 Short Circuit 1 | . . . 1 Damage (minor) 2 | . . . 2 Damage (major) 1 | . . . 1 Damage (core) 1 | . . . 1 Siege Activations . | . . . . Martial Activations . | . . . . Shielding Activations . | . . . . Robots Disrupted . | . . . . Combat Hostiles . | . . . . Robots Corrupted . | . . . . Combat Hostiles . | . . . . Parts Fried . | . . . . Impact Corruptions . | . . . . Robots Melted . | . . . . Combat Hostiles . | . . . . Parts Melted 6 | . 1 . 5 Heat Transferred 3689 | . 592 914 2183 Parts Sabotaged . | . . . . Parts Stolen . | . . . . Parts Stripped . | . . . . Power Chain Reactions . | . . . . Alert | -11 -10 -9 -8 ------- Run | Yrd Mat Mat Mat Maximum Alert Level . | . . . . Low Security (%) 100 | 100 100 100 100 Level 1 . | . . . . Level 2 . | . . . . Level 3 . | . . . . Level 4 . | . . . . Level 5 . | . . . . High Security . | . . . . Max Security . | . . . . Peak Influence 92 | . 92 35 43 Initial 9 | . . . 9 Average 15 | . 28 9 10 Influence Increases 934 | . 327 236 371 Destroy 0b10 Robot/C 580 | . 200 120 260 Destroy 0b10 Robot/NC 30 | . 5 10 15 Destroy Leader 152 | . 50 30 72 Disable Machine 15 | . . . 15 Destroy Structure 37 | . 27 1 9 Lose Combat Pursuer 120 | . 45 75 . Influence Decreases 822 | . 327 214 281 Entered New Map 13 | . . . 13 Time Decay 593 | . 237 184 172 Lost Part 216 | . 90 30 96 Squads Dispatched 6 | . 2 3 1 Investigation 1 | . . 1 . Extermination . | . . . . Reinforcement 5 | . 2 2 1 Assault . | . . . . Garrison . | . . . . Intercept . | . . . . Searches Triggered . | . . . . Construction Impeded . | . . . . Haulers Reinforced . | . . . . Active Scanning Responses . | . . . . Cargo Convoy Interrupts . | . . . . Stealth | -11 -10 -9 -8 --------- Run | Yrd Mat Mat Mat Distress Signals 5 | . 1 1 3 Communications Jammed . | . . . . Distress Signals . | . . . . Times Spotted 60 | . 23 19 18 Peak Tracking Total 7 | . 5 6 7 Tactical Retreats 6 | . 2 4 . Traps | -11 -10 -9 -8 ------- Run | Yrd Mat Mat Mat Traps Triggered 3 | . . 1 2 Indirectly . | . . . . Trap Hack Attempts . | . . . . Triggered . | . . . . Disarmed . | . . . . Reprogrammed . | . . . . Reused . | . . . . Traps Extracted . | . . . . Installed . | . . . . Triggered . | . . . . Machines | -11 -10 -9 -8 ---------- Run | Yrd Mat Mat Mat Machines Disabled 1 | . . . 1 Max in Single Turn 1 | . . . 1 Machines Repaired . | . . . . Machines Dismantled . | . . . . Machines Sabotaged . | . . . . Overloaded Fab Kills . | . . . . Hacking | -11 -10 -9 -8 --------- Run | Yrd Mat Mat Mat Machines Accessed 1 | . . . 1 Terminals 1 | . . . 1 Fabricators . | . . . . Repair Stations . | . . . . Recycling Units . | . . . . Scanalyzers . | . . . . Garrison Access . | . . . . Total Hacks 1 | . . . 1 Successful 1 | . . . 1 Failed . | . . . . Catastrophic . | . . . . Database Lockouts . | . . . . Manual . | . . . . Terminals 1 | . . . 1 Fabricators . | . . . . Repair Stations . | . . . . Recycling Units . | . . . . Scanalyzers . | . . . . Garrison Access . | . . . . Terminal Hacks 1 | . . . 1 Record 1 | . . . 1 Fabricator Hacks . | . . . . Repair Station Hacks . | . . . . Recycling Unit Hacks . | . . . . Scanalyzer . | . . . . Garrison Access Hacks . | . . . . Unauthorized Hacks . | . . . . Terminals . | . . . . Fabricators . | . . . . Repair Stations . | . . . . Recycling Units . | . . . . Scanalyzers . | . . . . Garrison Access . | . . . . Data Cores Recovered . | . . . . Used . | . . . . Hacking Detections . | . . . . Full Trace Events . | . . . . Feedback Events . | . . . . Feedback Blocked . | . . . . Robot Schematics Acquired . | . . . . Robots Built . | . . . . Authchips . | . . . . Time . | . . . . Total Robot Build Rating . | . . . . Part Schematics Acquired . | . . . . Parts Built . | . . . . Authchips . | . . . . Time . | . . . . Total Part Build Rating . | . . . . Part Studies Acquired . | . . . . Parts Repaired . | . . . . Time . | . . . . Parts Recycled . | . . . . Recycled Matter . | . . . . Retrieved Matter . | . . . . Retrieved Components . | . . . . Parts Scanalyzed . | . . . . Part Schematics Acquired . | . . . . Parts Damaged . | . . . . Bothacking | -11 -10 -9 -8 ------------ Run | Yrd Mat Mat Mat Used RIF Installer . | . . . . Robots Hacked . | . . . . Non-combat . | . . . . Combat . | . . . . Robot Hacks Applied . | . . . . Relay Couplers Released . | . . . . Fabnet Peak Effective % . | . . . . Robots Rewired . | . . . . Allies Hacked . | . . . . Hacks Repelled . | . . . . Allies | -11 -10 -9 -8 -------- Run | Yrd Mat Mat Mat Total Allies . | . . . . Largest Group . | . . . . Highest-Rated Group . | . . . . Highest-Rated Ally . | . . . . Total Orders . | . . . . Ally Attacks . | . . . . Total Damage . | . . . . Kills . | . . . . Allies Corrupted . | . . . . Allies Melted . | . . . . Intel | -11 -10 -9 -8 ------- Run | Yrd Mat Mat Mat Active Infowar (turns) . | . . . . Robot Analysis Total . | . . . . Derelict Logs Recovered . | . . . . Drone Launches . | . . . . Drone Recoveries . | . . . . Exploration | -11 -10 -9 -8 ------------- Run | Yrd Mat Mat Mat Turns Passed 2124 | 80 618 620 806 Spaces Moved 1082 | 53 354 303 372 Core 18 | 14 4 . . Treads 50 | 25 25 . . Legs 1014 | 14 325 303 372 Wheels . | . . . . Hover . | . . . . Flight . | . . . . Fastest Speed 50 | 50 120 90 90 Average Speed 139 | 120 125 158 140 Slowest Speed 300 | 160 300 190 200 Overloaded Moves . | . . . . Propulsion Burnouts . | . . . . Robots Hopped . | . . . . Potential Cave-ins . | . . . . Cave-ins Triggered . | . . . . Exploration Rate (%) 34 | 4 70 31 33 Regions Visited 3 Branch Regions . Pre-discovered Areas . | . . . . Known Exits Taken . | . . . . Unknown Exits Taken 3 | 1 1 1 . Scrap Searched . | . . . . Spaces Dug . | . . . . Terrain Destroyed 31 | . 26 . 5 Melee . | . . . . Projectile . | . . . . AOE 31 | . 26 . 5 Terrain Rammed . | . . . . Walls Destroyed . | . . . . Machines Disabled . | . . . . Actions | -11 -10 -9 -8 --------- Run | Yrd Mat Mat Mat Total 1431 | 66 439 377 549 Wait 62 | . 1 . 61 Move 1079 | 52 353 302 372 Hop . | . . . . Pick Up 50 | 6 13 16 15 Fast Attach 7 | 4 . . 3 Attach 33 | 2 11 6 14 Detach . | . . . . Swap 29 | 2 7 10 10 Drop 16 | . . 8 8 Fire 145 | . 54 34 57 Melee 9 | . . 1 8 Ram . | . . . . Kick 1 | . . . 1 Crush . | . . . . Escape Stasis . | . . . . Rewire . | . . . . Trap . | . . . . Miscellaneous . | . . . . Route ------- -11/Scrapyard -10/Materials (discovered 2 exits: [*Mat] / [*Min]) -9/Materials -8/Materials History --------- Turn | Location | Event 11 | -11/Scrapyard | Discovered new exit (range 15) 81 | -11/Scrapyard | Entered Materials 214 | -10/Materials | Lost 5 parts (1p2n2w) 300 | -10/Materials | Build established: Mutant 337 | -10/Materials | Discovered new exit (range 6) 547 | -10/Materials | Core integrity fell below 50% 605 | -10/Materials | Lost 4 parts (1p1n1u1w) 657 | -10/Materials | Discovered new exit (range 11) 699 | -10/Materials | Entered another Materials area 699 | -9/Materials | Evolved 2 slots: Utility x2 1307 | -9/Materials | Discovered new exit (range 13) 1319 | -9/Materials | Entered another Materials area 1319 | -8/Materials | Evolved 2 slots: Propulsion x1, Utility x1 1521 | -8/Materials | Lost 3 parts (1p2u) 1980 | -8/Materials | Core integrity fell below 50% 2036 | -8/Materials | Lost 3 parts (1p1u1w) 2105 | -8/Materials | Core integrity fell below 20% 2107 | -8/Materials | Lost 3 parts (1p2n) 2125 | -8/Materials | Destroyed self via exploding Fusion Modulator Last Messages --------------- 02102_ K-01 Serf collects debris. 02106_ K-01 Serf cleans the Fusion Modulator. 02106_ G-47 Trooper Lgt. Nuclear Core severed. 02106_ Scythe follow-up attack on G-47 Trooper. 02106_ G-47 Trooper destroyed. 02107_ K-01 Serf collects debris. 02112_ Imp. Heat Sink destroyed. 02113_ Acquired 35 matter. 02113_ Blade Saw destroyed. 02115_ Critical hit (Burn: +37). 02117_ Acquired Lgt. Nuclear Core. 02118_ Scythe destroyed. 02123_ System corrupted: Energy discharge (-121). 02125_ Y-45 Defender destroyed. 02125_ Fusion Modulator explodes. 02125_ G-47 Trooper destroyed. 02125_ Titanium Leg destroyed. 02125_ Destroyed Titanium Leg. 02125_ G-47 Trooper destroyed. Map ----- +----------------------------------------------------+ | ?????????????????????????????????????????????????? | | ?????????????????????????????????????????????????? | | ?????????????????????????????????????????????????? | | ?????????????????????????????????????????????????? | | ?????????????????????????????????????????????????? | | ?????????????????????????????????????????????????? | | ?????????????????????????????????????????????????? | | ?????????????????????????????????????????????????? | | ?????????????????????????????????????????????????? | | ?????????????????????????????????????????????????? | | ?????????????????????????????????????????????????? | | ?????????????????????????????????????????????????? | | ?????????????????????????????????????????????????? | | ???????????? ??????????????????????????????????? | | ???????????# ??????????????????????????????????? | | ???????????# ??????????????????????????????????? | | ??????#+##?# #??#####?####?????????????????????? | | ?????? #??# #?????????????????????? | | ??????# ^ #??# """ #?????????????????????? | | ??????# "" ##?# """ #?????????????????????? | | ??????# G" #?# """a #?????????????????????? | | ??????# "" #?# #?????????????????????? | | ??????# #?# [ ##????????????????????? | | ??????# ^ ! #?# % #????????????????????? | | ####??# """ #?# =** #?????????????????????? | | ??# """ #?# =%[ [@ #?????????????????????? | | """ ?# """ ##### % ##### ?????????????? | | """ ?# k =%!!%= ????????????? | | """ # * a [ = ????????????? | | # k ????????????? | | + #################+### ?????????????? | | # ###############??? ?????#?????????????? | | T" [# # = #???? #??????????????????? | | ?# # #?????#??????????????????? | | #####?# # """ """ """ #????????????????????????? | | ??# / """ """ ""???????????????????????????? | | """ # #=""" """ """ #????????????????????????? | | """ + # #????????????????????????? | | """ # ###############????????????????????????? | | ??# #??????????????????????????????????????? | | ! ????# #??????????????????????????????????????? | | ??????# #??????????????????????????????????????? | | ??????# #??????????????????????????????????????? | | ??????# #??????????????????????????????????????? | | ??????# #??????????????????????????????????????? | | ??????# #??????????????????????????????????????? | | ####### #??????????????????????????????????????? | | #^^^#??????????????????????????????????????? | | "" # ^^#??????????????????????????????????????? | | """ # #??????????????????????????????????????? | +----------------------------------------------------+ Best States ------------- Heat Dissipation 45 Energy Generation 14 Energy Capacity 515 Matter Stores 300 Matter Capacity 300 Sight Range 16 Terrain Scan Density 10 Base Temperature (-) 100 Armor Coverage 300 Resistance: EM 15 Weapon Shielding 33 Evasion (%) 57 Recoil Reduction 2 Offensive Hacking 10 Defensive Hacking 10 Item Schematics ----------------- None Robot Schematics ------------------ None Fabricated ------------ Nothing Repaired ---------- Nothing Studied --------- None Alien Tech Used ----------------- None Achievements -------------- DIY Cooler Sprinter Challenges ------------ None Game ------ Seed RegenerativeDataBoomstick Manual? 0 Play Time 00:23:25 Cumulative 18.9 hours Start 2026.04.08 @ 13:54:11 End 2026.04.08 @ 14:16:39 Sessions 1 Manual Loads 0 Difficulty Rogue Special Mode None Game No. 52 Rogue 52 Adventurer 0 Explorer 0 Win Type - Total 0 Types 0/0/0/0/0/0/0/0/0/0 Lore% 10 Gallery% 20 Achievement% 11 Wizard Run 0 Options --------- Layout 2 ASCII 0 Keyboard 0 Movement Mouse Keybinds 0 Fullscreen 1 Font 24/Crisp Map View 50x44 Zoom Use 0% Tactical HUD 1 Map Filters NONE Filters NONE Steam 1 RUN: c1c16f8d-f673-4325-9294-a3febef81506